bitfinex-derivatives/quotes_ETHF0:USTF0_20240913
["timestamp","ask_amount","ask_price","bid_price","bid_amount"]
[1726227338269,0.3713,2367.8,2367.6,0.42234]
[1726227339668,0.3994,2368.1,2367.7,3.3]
[1726227339968,0.3994,2368.1,2367.9,0.42228]
[1726227340182,0.3994,2368.1,2367.9,3.72229]
[1726227340965,0.82166,2368.1,2367.9,3.3]
[1726227341163,0.3994,2368.1,2367.8,0.42231]
[1726227341366,0.82165,2368.1,2367.8,0.42229]
[1726227341673,0.82166,2368.1,2367.7,6.5078]
[1726227341972,0.3994,2368.1,2367.9,0.42228]
[1726227342176,0.82165,2368.1,2367.9,0.42228]
[1726227342478,0.3994,2368.1,2367.9,0.42228]
[1726227342676,0.82166,2368.1,2367.9,0.42228]
[1726227342873,0.3994,2368.1,2367.7,3.3]
[1726227343677,0.3994,2368.1,2367.9,0.42228]
[1726227344475,0.3994,2368.1,2367.9,3.72228]
[1726227345179,0.82165,2368.1,2367.9,3.3]
[1726227345379,0.3994,2368.1,2367.9,3.72228]
[1726227345573,0.3994,2368.1,2368.0,0.42227]
[1726227347704,0.3994,2368.1,2367.9,3.72228]
[1726227347985,0.3994,2368.1,2367.9,3.3]
[1726227348282,0.3994,2368.1,2367.7,3.3]
[1726227348480,1.45505,2368.1,2367.6,3.63013]
[1726227348677,0.42231,2367.8,2367.6,3.63014]
[1726227348980,1.1808,2367.7,2367.6,3.63014]
[1726227349182,1.60313,2367.7,2367.4,0.42237]
[1726227349380,3.2078,2367.6,2367.4,0.42237]
[1726227349689,3.63015,2367.6,2367.3,0.42239]
[1726227349977,3.63015,2367.6,2367.1,7.0009]
[1726227350176,3.63015,2367.6,2367.3,0.42239]
[1726227350374,3.63015,2367.6,2367.2,0.4224]
[1726227350775,3.63015,2367.6,2367.3,0.42239]
[1726227351380,3.63015,2367.6,2367.1,6.9029]
[1726227351575,3.63015,2367.6,2367.3,0.42239]
[1726227352279,3.2078,2367.6,2367.2,0.42241]
[1726227352480,3.63016,2367.6,2367.3,0.42239]
[1726227352674,1.1808,2367.7,2367.3,3.3]
[1726227353078,1.1808,2367.7,2367.6,0.42234]
[1726227353579,1.1808,2367.7,2367.5,4.13165]
[1726227354772,3.63009,2367.9,2367.6,0.42234]
[1726227355082,1.1843,2368.1,2367.7,3.3]
[1726227355283,1.1843,2368.1,2367.7,6.5078]
[1726227355479,1.60656,2368.1,2367.8,0.42231]
[1726227355683,1.60657,2368.1,2367.7,3.72232]
[1726227356185,0.42227,2368.0,2367.7,3.72232]
[1726227356379,1.1843,2368.1,2367.7,3.3]
[1726227356573,0.42228,2368.0,2367.7,3.3]
[1726227356776,3.2078,2367.8,2367.7,3.3]
[1726227357575,1.1843,2368.1,2367.7,3.3]
[1726227357576,4.81436,2368.1,2367.7,3.72232]
[1726227358183,4.3921,2368.1,2367.8,0.42229]
[1726227358995,4.81436,2368.1,2367.7,3.72232]
[1726227359284,4.3921,2368.1,2367.8,0.4223]
[1726227359674,4.81436,2368.1,2367.8,0.4223]
[1726227359881,4.81436,2368.1,2367.7,3.72231]
[1726227360188,4.81436,2368.1,2367.8,0.4223]
[1726227360487,4.81436,2368.1,2367.7,3.3]
[1726227360488,4.3921,2368.1,2367.7,3.3]
[1726227360687,4.3921,2368.1,2367.8,0.42229]
[1726227360887,4.3921,2368.1,2367.5,1.4652]
[1726227360888,4.3921,2368.1,2367.5,3.7093]
[1726227361093,4.3921,2368.1,2367.6,0.42233]
[1726227361094,0.42229,2367.9,2367.6,0.42233]
[1726227361480,0.42228,2368.0,2367.7,0.42232]
[1726227361682,0.42228,2368.0,2367.8,0.4223]
[1726227361982,4.81437,2368.1,2367.6,1.05586]
[1726227362181,4.81437,2368.1,2367.8,0.42229]
[1726227362585,0.42228,2368.0,2367.8,0.42229]
[1726227362788,4.3921,2368.1,2367.7,0.42232]
[1726227362789,0.42229,2367.9,2367.7,0.42232]
[1726227363080,3.2078,2367.8,2367.7,0.42232]
[1726227363475,3.2078,2367.8,2367.5,0.4093]
[1726227363684,1.1632,2367.7,2367.6,0.42234]
[1726227365486,0.7622,2367.7,2367.6,0.42234]
[1726227365687,1.19128,2368.0,2367.5,4.76521]
[1726227365884,1.1427,2368.0,2367.5,4.76521]
[1726227366098,1.56498,2368.0,2367.7,3.3]
[1726227366384,2.19841,2368.0,2367.6,0.42234]
[1726227366588,0.42231,2367.8,2367.6,0.42234]
[1726227366792,0.42232,2367.8,2367.6,0.42234]
[1726227366988,3.2078,2367.9,2367.7,0.42231]
[1726227366989,3.63009,2367.9,2367.7,0.42231]
[1726227368686,3.63009,2367.9,2367.5,3.3]
[1726227368890,3.63009,2367.9,2367.7,0.42232]
[1726227369483,3.63009,2367.9,2367.5,3.3]
[1726227369484,1.56498,2368.0,2367.8,0.42231]
[1726227369683,1.1427,2368.0,2367.6,1.05586]
[1726227369887,1.56497,2368.0,2367.8,0.42229]
[1726227370789,1.1427,2368.0,2367.7,1.1575]
[1726227370990,1.1427,2368.0,2367.7,1.57982]
[1726227371187,1.56498,2368.0,2367.7,1.18412]
[1726227371495,3.6301,2367.9,2367.7,0.42232]
[1726227372798,3.6301,2367.9,2367.8,0.42231]
[1726227372799,3.2078,2367.9,2367.8,0.42231]
[1726227374091,3.2078,2367.9,2367.8,1.56551]
[1726227374397,3.2078,2367.9,2367.7,3.3]
[1726227374398,3.2078,2367.9,2367.7,0.42232]
[1726227374595,3.2078,2367.9,2367.5,6.60259218]
[1726227374801,3.6301,2367.9,2367.6,0.42233]
[1726227375698,3.63009,2367.9,2367.6,1.52582218]
[1726227375898,3.63009,2367.9,2367.7,0.42232]
[1726227378289,3.6301,2367.9,2367.7,0.42232]
[1726227379190,3.6301,2367.9,2367.8,0.42231]
[1726227379596,3.6301,2367.9,2367.7,0.42231]
[1726227380304,3.6301,2367.9,2367.8,0.42231]
[1726227380691,3.6301,2367.9,2367.7,0.42231]
[1726227380895,3.6301,2367.9,2367.8,0.42231]
[1726227381606,3.2078,2367.9,2367.8,0.42231]
[1726227384091,3.60158025,2368.2,2368.0,0.42226]
[1726227384290,0.42227,2368.1,2367.8,1.10349218]
[1726227384491,3.2078,2368.1,2367.8,0.42231]
[1726227385104,0.42227,2368.0,2367.7,4.82581218]
[1726227385299,0.42227,2368.0,2367.7,4.82580218]
[1726227385300,0.7875,2367.9,2367.7,4.82580218]
[1726227385600,0.7875,2367.9,2367.7,3.3]
[1726227386005,0.3751,2367.8,2367.7,4.82581218]
[1726227386299,0.3751,2367.8,2367.7,3.72232]
[1726227386998,0.79741,2367.8,2367.6,1.52583218]
[1726227387205,0.79741,2367.8,2367.6,0.42234]
[1726227388801,0.79741,2367.8,2367.6,0.42233]
[1726227389509,0.79741,2367.8,2367.7,0.42232]
[1726227390304,0.79741,2367.8,2367.5,5.54669218]
[1726227390505,0.79741,2367.8,2367.6,1.10349218]
[1726227390701,0.3751,2367.8,2367.7,0.42232]
[1726227390905,0.3869,2367.9,2367.8,0.42231]
[1726227393409,0.81107,2368.0,2367.8,0.42231]
[1726227394708,0.81108,2368.0,2367.8,0.4223]
[1726227395508,0.81108,2368.0,2367.7,4.40349218]
[1726227395805,0.42229,2367.9,2367.7,0.42232]
[1726227396306,0.3732,2367.8,2367.7,0.42232]
[1726227396607,0.79551,2367.8,2367.7,0.42232]
[1726227397005,0.3732,2367.8,2367.7,0.42232]
[1726227397204,0.79551,2367.8,2367.7,1.52581218]
[1726227397413,0.79551,2367.8,2367.7,0.42232]
[1726227397610,0.79551,2367.8,2367.7,1.52581218]
[1726227397812,0.79551,2367.8,2367.7,0.42232]
[1726227398209,0.79551,2367.8,2367.7,2.0053453]
[1726227399123,0.3732,2367.8,2367.7,2.00534513]
[1726227399816,1.44449,2368.0,2367.7,2.98938223]
[1726227399817,3.58203025,2368.0,2367.7,2.98938223]
[1726227400018,3.98513025,2368.0,2367.8,2.00935541]
[1726227400228,0.42229,2367.9,2367.8,2.62753246]
[1726227400712,3.98513025,2368.0,2367.8,3.52920808]
[1726227400905,3.98513025,2368.0,2367.9,0.42229]
[1726227400906,0.7919,2368.0,2367.9,0.42229]
[1726227401106,0.3888,2368.0,2367.9,0.42229]
[1726227401306,0.3888,2368.0,2367.9,1.18459]
[1726227401506,0.3888,2368.0,2367.9,2.76155251]
[1726227401716,0.3888,2368.0,2367.9,2.70459]
[1726227402111,0.81107,2368.0,2367.9,2.70459]
[1726227402311,0.81107,2368.0,2367.9,2.2823]
[1726227402613,0.42229,2367.9,2367.8,3.04982246]
[1726227402808,0.42229,2367.9,2367.8,3.52916852]
[1726227403007,0.42229,2367.9,2367.8,1.94231]
[1726227403220,0.42229,2367.9,2367.7,1.10753246]
[1726227403221,0.42231,2367.8,2367.7,1.10753246]
[1726227403406,4.02981,2367.8,2367.7,1.52985246]
[1726227403719,4.02981,2367.8,2367.7,0.42232]
[1726227404114,4.02981,2367.8,2367.7,1.52985246]
[1726227404518,4.02981,2367.8,2367.7,0.42232]
[1726227404710,3.6075,2367.8,2367.7,0.42232]
[1726227405020,4.02981,2367.8,2367.7,2.00922401]
[1726227405215,4.02981,2367.8,2367.7,0.42232]
[1726227405419,3.6075,2367.8,2367.7,0.42232]
[1726227405817,0.42229,2367.9,2367.8,0.42229]
[1726227406005,0.42229,2367.9,2367.8,2.00890577]
[1726227406312,0.42229,2367.9,2367.8,1.52956636]
[1726227406715,0.42229,2367.9,2367.8,2.00887451]
[1726227407119,0.42229,2367.9,2367.8,1.58656451]
[1726227407317,0.42229,2367.9,2367.8,0.42231]
[1726227407519,0.42229,2367.9,2367.7,1.52958636]
[1726227407735,0.42231,2367.8,2367.7,1.52958636]
[1726227407917,0.4223,2367.9,2367.7,2.0089273]
[1726227408114,0.4223,2367.9,2367.8,0.42231]
[1726227408514,3.19324025,2367.9,2367.8,0.42231]
[1726227410223,2.77094025,2367.9,2367.8,0.42231]
[1726227410424,1.19898,2368.0,2367.9,0.42229]
[1726227410927,3.96992025,2368.0,2367.9,0.42229]
[1726227411922,3.54764025,2368.0,2367.8,2.62727636]
[1726227412323,3.96992025,2368.0,2367.9,0.42229]
[1726227412914,0.42229,2367.9,2367.8,3.04957636]
[1726227413115,3.54764025,2368.0,2367.8,2.62727636]
[1726227413320,3.96992025,2368.0,2367.9,0.42229]
[1726227413618,0.42229,2367.9,2367.8,0.42231]
[1726227413820,3.19307187,2367.9,2367.8,0.42231]
[1726227417930,5.27893,2367.9,2367.6,1.10727636]
[1726227418134,3.63012,2367.7,2367.6,1.52961636]
[1726227418329,3.63012,2367.7,2367.6,2.00905489]
[1726227418535,4.00692,2367.7,2367.6,2.00905489]
[1726227419025,4.00692,2367.7,2367.6,1.52961636]
[1726227420219,5.06274,2367.7,2367.6,1.10727636]
[1726227420426,0.42234,2367.6,2367.5,1.10727636]
[1726227420625,0.42236,2367.5,2367.4,1.52964636]
[1726227420822,0.42236,2367.5,2367.4,3.41658729]
[1726227421032,0.42236,2367.5,2367.4,2.00933274]
[1726227421427,0.42236,2367.5,2367.4,1.52964636]
[1726227422030,0.42236,2367.5,2367.4,2.00933647]
[1726227422230,0.42236,2367.5,2367.4,0.90206011]
[1726227422441,0.42236,2367.5,2367.4,0.42237]
[1726227422747,1.83126,2367.6,2367.3,1.52965636]
[1726227422748,0.42238,2367.4,2367.3,1.52965636]
[1726227422926,0.42238,2367.4,2367.3,3.4160413]
[1726227423125,0.42238,2367.4,2367.3,2.9936613]
[1726227423331,3.63018,2367.4,2367.3,1.58741939]
[1726227423537,3.63018,2367.4,2367.3,1.53012767]
[1726227423738,0.4224,2367.3,2367.2,1.10772767]
[1726227424031,0.4224,2367.3,2366.9,1.20572767]
[1726227424032,1.47852,2367.1,2366.9,1.20572767]
[1726227424236,3.2078,2367.0,2366.9,1.53019767]
[1726227424538,3.2078,2367.0,2366.9,5.00496579]
[1726227424739,3.2078,2367.0,2366.9,4.58249579]
[1726227424740,0.42245,2367.0,2366.9,4.58249579]
[1726227424929,0.42245,2367.0,2366.9,2.7638192]
[1726227425239,0.42247,2366.9,2366.8,3.05038601]
[1726227425536,0.42247,2366.9,2366.7,1.52966435]
[1726227425537,0.3779,2366.9,2366.7,1.52966435]
[1726227425729,1.21649,2366.8,2366.7,1.10717435]
[1726227426035,4.42429,2366.8,2366.7,1.52963481]
[1726227426333,4.42429,2366.8,2366.7,0.4225]
[1726227426533,4.42429,2366.8,2366.6,3.04964481]
[1726227426729,4.42429,2366.8,2366.6,2.62713481]
[1726227426929,4.42429,2366.8,2366.6,3.04964481]
[1726227427132,0.794,2366.8,2366.6,3.04964481]
[1726227427335,0.4225,2366.7,2366.6,1.94251]
[1726227428144,0.4225,2366.7,2366.5,2.67256481]
[1726227428431,0.4225,2366.7,2366.5,1.56543]
[1726227429836,4.42429,2366.8,2366.6,0.42252]
[1726227430037,0.42247,2366.9,2366.6,3.3]
[1726227430435,0.42247,2366.9,2366.7,0.4225]
[1726227430630,0.42249,2366.8,2366.6,3.72251]
[1726227430837,0.42247,2366.9,2366.6,3.3]
[1726227431240,0.42249,2366.8,2366.6,3.72251]
[1726227431943,0.4055,2366.7,2366.6,3.72251]
[1726227432533,0.4055,2366.7,2366.6,3.3]
[1726227433130,3.2078,2366.8,2366.7,0.4225]
[1726227433634,3.2078,2366.8,2366.5,0.42253]
[1726227433834,3.63029,2366.8,2366.6,0.42251]
[1726227434035,3.63029,2366.8,2366.6,0.42252]
[1726227434331,0.42251,2366.7,2366.5,1.22283]
[1726227435436,0.3713,2366.6,2366.5,1.22283]
[1726227435641,3.2078,2366.8,2366.6,0.42252]
[1726227435838,3.2078,2366.8,2366.7,0.4225]
[1726227439136,1.05603,2367.3,2366.9,0.42247]
[1726227439137,1.056,2367.3,2366.9,0.42247]
[1726227439440,0.42243,2367.1,2367.0,3.3]
[1726227439847,0.3853,2367.2,2367.0,3.3]
[1726227440235,0.42243,2367.1,2366.8,3.3]
[1726227440541,0.42243,2367.1,2366.8,3.72247]
[1726227440740,0.42245,2367.0,2366.8,3.72247]
[1726227441246,3.63024,2367.1,2366.9,0.42247]
[1726227441540,3.63024,2367.1,2366.8,3.3]
[1726227441541,0.42249,2366.8,2366.6,0.42251]
[1726227441740,0.3743,2366.7,2366.6,0.42251]
[1726227442438,0.3743,2366.7,2366.6,0.42252]
[1726227443042,1.20108,2366.9,2366.7,0.4225]
[1726227443238,0.4046,2366.9,2366.8,0.42249]
[1726227443443,3.2078,2367.1,2366.7,1.05623]
[1726227443644,0.42243,2367.1,2367.0,3.3]
[1726227443941,0.42243,2367.1,2366.9,3.72246]
[1726227444149,0.42243,2367.1,2366.9,4.49846]
[1726227445653,0.42245,2367.0,2366.9,4.076]
[1726227445843,0.42244,2367.1,2366.9,4.49847]
[1726227446446,0.42245,2367.0,2366.9,4.076]
[1726227446651,0.42244,2367.1,2366.9,4.49846]
[1726227447553,1.47858,2367.0,2366.9,3.3]
[1726227447850,4.2248,2367.1,2366.4,4.198]
[1726227448042,3.63034,2366.5,2366.4,4.198]
[1726227448850,4.00324,2366.5,2366.4,4.198]
[1726227450650,4.00324,2366.5,2366.4,4.62056]
[1726227450948,4.00324,2366.5,2366.4,4.198]
[1726227453157,0.42256,2366.4,2366.3,0.42257]
[1726227453355,1.0564,2366.4,2366.1,0.7466]
[1726227453560,0.42258,2366.3,2366.2,0.42258]
[1726227454962,0.42258,2366.3,2365.9,0.7688]
[1726227455159,4.64109,2366.2,2365.9,0.42263]
[1726227455359,0.42263,2366.0,2365.9,0.42263]
[1726227456655,0.82662,2366.1,2365.9,0.42263]
[1726227456850,0.82661,2366.1,2365.9,0.42263]
[1726227457554,0.42263,2366.0,2365.8,3.72265]
[1726227459658,0.42265,2365.9,2365.7,0.7803]
[1726227459864,0.42266,2365.8,2365.7,0.396]
[1726227460160,0.4015,2365.8,2365.7,0.81868]
[1726227460855,3.2078,2365.9,2365.7,0.81868]
[1726227461062,3.2078,2365.9,2365.8,0.42266]
[1726227461556,3.2078,2365.9,2365.7,0.81867]
[1726227461958,3.2078,2365.9,2365.8,0.42266]
[1726227462162,3.2078,2365.9,2365.8,3.72266]
[1726227462656,0.404,2366.1,2365.9,0.42263]
[1726227462964,0.404,2366.1,2365.9,0.80183]
[1726227463262,0.404,2366.1,2366.0,0.42263]
[1726227463763,0.42259,2366.2,2366.0,0.42263]
[1726227464156,0.42259,2366.2,2366.1,0.3748]
[1726227464964,4.01698,2366.3,2366.1,0.3748]
[1726227465261,4.01698,2366.3,2366.1,0.7974]
[1726227466264,3.5944,2366.3,2366.2,0.42259]
[1726227466770,0.7765,2366.5,2366.3,0.42257]
[1726227466971,0.378,2366.5,2366.4,0.42256]
[1726227467268,1.05618,2366.9,2366.5,0.42254]
[1726227467462,3.2078,2366.7,2366.5,0.81563]
[1726227467780,1.82788,2366.9,2366.5,0.81563]
[1726227467964,0.42251,2366.7,2366.5,0.81563]
[1726227468164,0.42249,2366.8,2366.6,0.42252]
[1726227468471,0.4016,2366.9,2366.6,3.3]
[1726227468670,3.2078,2367.0,2366.9,0.42247]
[1726227469174,3.63025,2367.0,2366.9,0.7802]
[1726227469363,3.2078,2367.0,2366.9,0.7802]
[1726227469865,3.63025,2367.0,2366.9,0.7802]
[1726227473364,3.63025,2367.0,2366.8,0.42247]
[1726227473863,0.42247,2366.9,2366.7,3.72249]
[1726227474467,3.2078,2367.0,2366.7,3.72249]
[1726227474765,0.3713,2366.8,2366.7,3.72249]
[1726227474970,0.79379,2366.8,2366.7,3.72249]
[1726227475163,0.3713,2366.8,2366.7,3.72249]
[1726227475759,0.79379,2366.8,2366.7,3.72249]
[1726227476763,0.3713,2366.8,2366.7,3.72249]
[1726227477768,3.2078,2367.0,2366.9,0.42247]
[1726227478171,3.2078,2367.0,2366.9,4.77865]
[1726227478475,3.2078,2367.0,2366.9,13.94727]
[1726227480072,3.2078,2367.0,2366.9,7.94727]
[1726227480969,3.2078,2367.3,2366.9,7.5248]
[1726227481173,3.63021,2367.3,2367.0,0.42244]
[1726227481374,0.3841,2367.2,2367.0,0.42244]
[1726227481775,0.3841,2367.2,2367.1,0.42243]
[1726227481969,0.3841,2367.2,2367.0,0.82994]
[1726227482878,0.3841,2367.2,2367.1,0.42243]
[1726227483181,3.2078,2367.3,2367.1,0.81923]
[1726227483574,3.2078,2367.3,2367.1,0.81922]
[1726227484276,3.6302,2367.3,2367.1,0.3968]
[1726227484577,3.6302,2367.3,2366.9,3.3]
[1726227484578,0.42242,2367.2,2366.9,3.72246]
[1726227484772,0.80412,2367.2,2366.9,3.72246]
[1726227484965,1.17582,2367.2,2366.9,3.72246]
[1726227485181,1.17582,2367.2,2366.8,1.1897]
[1726227485182,0.7534,2367.2,2366.7,0.098]
[1726227485478,0.7534,2367.2,2366.6,3.2078]
[1726227485479,3.63026,2367.0,2366.6,0.797]
[1726227485780,3.2078,2367.0,2366.8,0.42248]
[1726227485975,0.3915,2366.9,2366.8,0.42248]
[1726227487077,0.3915,2366.9,2366.7,3.72249]
[1726227487384,0.81397,2366.9,2366.7,3.72249]
[1726227488569,0.4225,2366.8,2366.5,4.71853]
[1726227488771,0.81281,2366.7,2366.5,0.42253]
[1726227489080,4.65437,2366.7,2366.3,0.80566]
[1726227489381,0.42255,2366.5,2366.2,0.42258]
[1726227489570,0.42255,2366.5,2366.1,4.095]
[1726227489771,0.80006,2366.4,2366.2,0.42258]
[1726227489971,0.3775,2366.4,2366.1,4.5176]
[1726227490184,0.42259,2366.3,2366.1,3.3]
[1726227490369,0.3903,2366.2,2366.1,3.3]
[1726227490574,0.3903,2366.2,2366.1,3.72261]
[1726227491884,0.81289,2366.2,2366.1,3.3]
[1726227492075,0.81289,2366.2,2366.1,3.72261]
[1726227492076,0.3903,2366.2,2366.1,3.72261]
[1726227492483,0.3903,2366.2,2365.7,3.3058]
[1726227492675,0.3903,2366.2,2365.8,0.42266]
[1726227492676,0.42263,2366.0,2365.8,0.42266]
[1726227492870,4.00842,2366.1,2365.8,0.42266]
[1726227493071,0.3752,2365.9,2365.8,0.42266]
[1726227494181,0.3752,2365.9,2365.5,3.3058]
[1726227494380,3.2078,2365.7,2365.5,0.4227]
[1726227494579,0.3752,2365.9,2365.4,3.3]
[1726227494774,0.3752,2365.9,2365.6,0.42269]
[1726227495276,0.3752,2365.9,2365.5,0.81431]
[1726227495277,0.79785,2365.9,2365.5,0.81431]
[1726227495791,0.79785,2365.9,2365.5,0.8143]
[1726227496187,0.42267,2365.8,2365.5,0.8143]
[1726227496377,0.42267,2365.8,2365.5,0.3916]
[1726227496778,0.42267,2365.8,2365.5,0.81432]
[1726227497682,0.42269,2365.7,2365.4,3.3]
[1726227497888,4.02559,2365.7,2365.4,3.3]
[1726227498384,0.4227,2365.6,2365.4,3.3]
[1726227498586,0.4227,2365.6,2365.2,0.81536]
[1726227498787,0.3969,2365.5,2365.3,0.42275]
[1726227499185,0.3969,2365.5,2365.2,0.81536]
[1726227499387,0.81963,2365.5,2365.1,3.6717]
[1726227499590,0.81963,2365.5,2365.2,0.79206]
[1726227499889,0.3969,2365.5,2365.2,0.79206]
[1726227500486,0.3969,2365.5,2365.2,0.3693]
[1726227500688,0.3969,2365.5,2365.2,0.79206]
[1726227500888,0.3969,2365.5,2365.3,0.42275]
[1726227501290,0.3969,2365.5,2365.2,0.79206]
[1726227501892,0.3969,2365.5,2365.3,0.42275]
[1726227502194,0.3969,2365.5,2365.2,0.79206]
[1726227502995,0.3969,2365.5,2365.3,0.42275]
[1726227504092,0.3969,2365.5,2365.3,0.42274]
[1726227505689,0.3969,2365.5,2365.3,3.72274]
[1726227506493,0.3969,2365.5,2365.3,3.3]
[1726227506685,0.3969,2365.5,2365.2,0.3693]
[1726227507095,0.3969,2365.5,2365.3,0.42275]
[1726227507893,0.3969,2365.5,2365.2,0.3693]
[1726227508296,0.3969,2365.5,2365.3,0.42274]
[1726227508486,0.3969,2365.5,2365.4,0.42274]
[1726227508690,0.3969,2365.5,2365.2,0.3693]
[1726227508892,0.3969,2365.5,2365.3,0.42274]
[1726227509093,0.3969,2365.5,2365.4,0.42274]
[1726227509802,0.81779,2365.7,2365.4,0.42273]
[1726227509996,0.81779,2365.7,2365.3,3.3]
[1726227509997,0.3951,2365.7,2365.5,0.42271]
[1726227510301,0.3951,2365.7,2365.6,0.4227]
[1726227510599,0.3951,2365.7,2365.4,0.3811]
[1726227510897,0.3951,2365.7,2365.5,0.42271]
[1726227511785,4.26432,2366.2,2365.5,3.3]
[1726227511990,0.39,2365.8,2365.6,0.3829]
[1726227512191,0.39,2365.8,2365.6,0.80559]
[1726227513486,0.39,2365.8,2365.6,1.19659]
[1726227514499,0.39,2365.8,2365.7,0.42268]
[1726227514795,0.81485,2365.9,2365.6,1.19659]
[1726227517401,0.42267,2365.8,2365.6,0.7739]
[1726227517591,0.42267,2365.8,2365.6,0.3829]
[1726227517797,0.42267,2365.8,2365.6,0.8056]
[1726227518198,0.42267,2365.8,2365.6,0.3829]
[1726227519501,0.42267,2365.8,2365.5,0.4227]
[1726227519796,0.42267,2365.8,2365.6,0.4227]
[1726227520204,3.2078,2365.7,2365.5,0.42271]
[1726227520404,0.386,2365.6,2365.5,0.42272]
[1726227520596,0.386,2365.6,2365.1,5.35298]
[1726227520597,1.20861,2365.6,2365.2,0.3931]
[1726227520896,0.3921,2365.5,2365.4,0.42273]
[1726227530814,0.3921,2365.5,2365.3,1.52]
[1726227531509,0.3921,2365.5,2365.3,1.94274]
[1726227531810,0.81483,2365.5,2365.2,0.3931]
[1726227532016,0.81483,2365.5,2365.0,1.10713481]
[1726227532017,3.2078,2365.4,2365.0,1.10713481]
[1726227532314,0.42278,2365.2,2364.9,3.44774481]
[1726227532512,0.4067,2365.1,2364.9,3.44774481]
[1726227532709,0.8014,2365.1,2364.9,2.34061]
[1726227533012,0.8014,2365.1,2364.9,1.9178]
[1726227533208,0.8014,2365.1,2364.9,2.34061]
[1726227533410,0.8014,2365.1,2364.9,1.9178]
[1726227533713,0.8014,2365.1,2365.0,0.42281]
[1726227534708,3.2078,2365.4,2365.1,0.42279]
[1726227534709,0.42275,2365.4,2365.1,0.42279]
[1726227534903,0.7648,2365.3,2365.1,1.94279]
[1726227537703,0.7648,2365.3,2365.2,0.42277]
[1726227537910,0.7648,2365.3,2365.1,1.94278]
[1726227539314,1.18756,2365.3,2365.1,1.52]
[1726227539513,0.7648,2365.3,2365.1,1.94278]
[1726227541917,1.18755,2365.3,2365.1,0.42278]
[1726227542520,0.7648,2365.3,2364.9,1.92775481]
[1726227542836,0.7648,2365.3,2364.8,2.44160319]
[1726227542837,3.2078,2365.1,2364.8,1.51053481]
[1726227543123,3.6306,2365.1,2364.9,0.42282]
[1726227543320,0.42281,2365.0,2364.9,0.42282]
[1726227543519,3.6306,2365.1,2364.9,0.42282]
[1726227543714,3.2078,2365.1,2364.9,0.42282]
[1726227544218,3.2078,2365.1,2364.8,0.42283]
[1726227544219,0.42282,2365.0,2364.8,0.42283]
[1726227544518,0.3872,2364.9,2364.8,0.42283]
[1726227544708,0.7568,2364.9,2364.8,0.42283]
[1726227545310,1.17963,2364.9,2364.7,3.04998481]
[1726227545720,1.17963,2364.9,2364.7,1.94285]
[1726227547515,0.7568,2364.9,2364.7,1.94285]
[1726227548013,1.17963,2364.9,2364.7,1.94285]
[1726227548221,1.17963,2364.9,2364.7,1.94286]
[1726227549422,0.7568,2364.9,2364.7,1.52]
[1726227549612,0.3862,2364.8,2364.7,1.94286]
[1726227550213,0.3862,2364.8,2364.7,1.52]
[1726227550510,0.3862,2364.8,2364.4,1.10713481]
[1726227550716,1.81387,2364.9,2364.6,0.7892]
[1726227551025,1.17964,2364.9,2364.6,0.7892]
[1726227551221,0.3696,2364.9,2364.8,0.42284]
[1726227551516,0.3696,2364.9,2364.7,1.52]
[1726227551711,0.3696,2364.9,2364.7,1.94285]
[1726227552107,0.3696,2364.9,2364.7,1.52]
[1726227552321,0.81498,2365.2,2364.8,1.52]
[1726227552515,1.20908,2365.2,2364.9,0.82081]
[1726227552924,1.20908,2365.2,2365.0,0.42281]
[1726227553216,1.20908,2365.2,2365.0,0.3898]
[1726227553813,0.42279,2365.1,2365.0,0.3898]
[1726227554013,1.20908,2365.2,2365.0,0.3898]
[1726227554210,1.84324,2365.2,2364.8,0.42283]
[1726227554421,0.4228,2365.1,2364.8,0.42283]
[1726227555627,0.3941,2365.2,2365.1,0.42279]
[1726227556322,0.3941,2365.2,2365.1,0.80219]
[1726227557027,3.2078,2365.4,2365.1,4.6074]
[1726227557321,3.63055,2365.4,2365.2,1.52]
[1726227557838,14.82215179,2366.1,2365.4,1.05685]
[1726227558028,0.42266,2365.8,2365.7,1.52]
[1726227558221,0.42268,2365.7,2365.5,0.7771]
[1726227558618,1.52,2365.7,2365.5,0.3691]
[1726227558825,1.2121,2365.6,2365.5,0.3691]
[1726227559016,0.7894,2365.6,2365.5,0.3691]
[1726227559517,5.0166,2365.6,2365.2,1.928]
[1726227559716,5.0166,2365.6,2365.2,0.408]
[1726227559717,3.5828,2365.5,2365.2,0.408]
[1726227559912,4.00552,2365.5,2365.3,0.42275]
[1726227562827,0.79772,2365.5,2365.3,0.42275]
[1726227563621,4.00552,2365.5,2365.3,0.42275]
[1726227565126,0.79772,2365.5,2365.3,0.42275]
[1726227565340,4.00552,2365.5,2365.3,0.42275]
[1726227566030,0.79772,2365.5,2365.3,0.42275]
[1726227567331,0.79772,2365.5,2365.3,0.42274]
[1726227568220,0.375,2365.5,2365.4,0.42274]
[1726227568424,0.375,2365.5,2365.2,4.81513481]
[1726227568630,1.05668,2365.8,2365.2,5.87206481]
[1726227568830,0.81569,2365.7,2365.2,9.07986481]
[1726227569125,0.81569,2365.7,2365.4,0.42272]
[1726227569526,0.81569,2365.7,2365.5,0.3978]
[1726227570918,0.81569,2365.7,2365.5,1.20831]
[1726227571331,0.81569,2365.7,2365.5,0.7856]
[1726227571732,0.81569,2365.7,2365.5,1.20831]